{"text_format":"1","workbook":"xlsx","n_sheets":1,"sheets":["Public Files"],"not_rendered":{"charts":0,"images":0,"macros":0,"external_links":0,"defined_names":1,"comments":0,"pivot_tables":0},"unopened":[],"bounds":{"document_bytes":16777216,"sheet_cells":100000,"rows_first":2000,"rows_last":500,"rows_between":2000,"halvings":0,"cell_chars":16384,"cell_head_chars":4096},"cells_cut":0,"cells_raw":0,"read":"whole","date_system":"1900"}

{"sheet":"Public Files","index":0,"n_rows":44,"n_cols":3,"rows_kept":44,"cut":false,"hidden":false,"merged":[]}
["Public File Name","File Type","Description"]
["Public_23I.LT.RP.20.PA1_.EP.MM.PP-D3 29 BP S06  v118.0 (16853) less 23I.LT.RP.20.PA1_.EP.MM.PP-D3 29  v114.5 (15447).xlsb",{"$f":"RIGHT(A2,4)","v":"xlsb"},"Comparison between business plan portfolio and the preferred portfolio case"]
["Public_23I.LT.RP.20.S01_.EP.MM.High Load  v118.1 (16858) less 23I.LT.RP.20.PA1_.EP.MM.PP-D3 29  v114.5 (15447).xlsb","xlsb","Comparison between high load portfolio and the preferred portfolio case"]
["Public_23I.LT.RP.20.S02_.EP.MM.Low Load  v118.1 (16859) less 23I.LT.RP.20.PA1_.EP.MM.PP-D3 29  v114.5 (15447).xlsb","xlsb","Comparison between low load portfolio and the preferred portfolio case"]
["Public_23I.LT.RP.20.S03_.EP.MM.1-20 Load  v118.1 (16860) less 23I.LT.RP.20.PA1_.EP.MM.PP-D3 29  v114.5 (15447).xlsb","xlsb","Comparison between 1 in 20 load portfolio and the preferred portfolio case"]
["Public_23I.LT.RP.20.S05_.EP.MM.Low PG Load  v118.7 (17098) less 23I.LT.RP.20.PA1_.EP.MM.PP-D3 29  v114.5 (15447).xlsb","xlsb","Comparison between Low PG load portfolio and the preferred portfolio case"]
["Public Figure 9.1 - 23I.LT.RP.20.PA1_.EP.MM.PP-V1 BG 26 GC (7364) less 23I.LT.RP.20.PA1_.EP.MM.PP-D3 29 (7359).xlsb","xlsb","Chapter 9 data for identified figures and tables"]
["Public Figure 9.11 - 23I.LT.RP.20.PA1_.EP.MM.PP-V6 No Future Tech (7371) less 23I.LT.RP.20.PA1_.EP.MM.PP-D3 29 (7359).xlsb","xlsb","Chapter 9 data for identified figures and tables"]
["Public Figure 9.13 - 23I.LT.RP.20.PA1_.EP.MM.PP-D3 32 (8386) less 23I.LT.RP.20.PA1_.EP.MM.PP-D3 29 (7359).xlsb","xlsb","Chapter 9 data for identified figures and tables"]
["Public Figure 9.15 - 23I.LT.RP.20.PA1_.EP.MM.PP No D3 (8387) less 23I.LT.RP.20.PA1_.EP.MM.PP-D3 29 (7359).xlsb","xlsb","Chapter 9 data for identified figures and tables"]
["Public Figure 9.18 - 23I.LT.RP.20.PA1_.EP.MM.PP Offshore WD (11951) less 23I.LT.RP.20.PA1_.EP.MM.PP-D3 29 (7359).xlsb","xlsb","Chapter 9 data for identified figures and tables"]
["Public Figure 9.20 - 23I.LT.RP.20.PA1_.EP.MM.PP Gas Only replacement (10304) less 23I.LT.RP.20.PA1_.EP.MM.PP-D3 29 (7359).xlsb","xlsb","Chapter 9 data for identified figures and tables"]
["Public Figure 9.22 - 23I.LT.RP.20.PA1_.EP.MM.PP No Coal No Gas 2040 (11953) less 23I.LT.RP.20.PA1_.EP.MM.PP-D3 29 (7359).xlsb","xlsb","Chapter 9 data for identified figures and tables"]
["Public Figure 9.24 - 23I.LT.RP.20.PA1_.EP.MM.PP Max DSM (8847) less 23I.LT.RP.20.PA1_.EP.MM.PP-D3 29 (7359).xlsb","xlsb","Chapter 9 data for identified figures and tables"]
["Public Figure 9.27 - 23I.LT.RP.20.PA1_.EP.MM.No GWS (9648) less 23I.LT.RP.20.PA1_.EP.MM.PP-D3 29 (7359).xlsb","xlsb","Chapter 9 data for identified figures and tables"]
["Public Figure 9.29 - 23I.LT.RP.20.PA1_.EP.MM.No B2H (9647) less 23I.LT.RP.20.PA1_.EP.MM.PP-D3 29 (7359).xlsb","xlsb","Chapter 9 data for identified figures and tables"]
["Public Figure 9.3 - 23I.LT.RP.20.PA1_.EP.MM.PP-V2 BG Coal (7367) less 23I.LT.RP.20.PA1_.EP.MM.PP-D3 29 (7359).xlsb","xlsb","Chapter 9 data for identified figures and tables"]
["Public Figure 9.32 - 23I.LT.RP.20.PA1_.EP.MM.PP-V18 East Cluster (7365) less 23I.LT.RP.20.PA1_.EP.MM.PP-D3 29 (7359).xlsb","xlsb","Chapter 9 data for identified figures and tables"]
["Public Figure 9.34 - 23I.LT.RP.20.PA1_.EP.MM.PP-V19 West Cluster (7366) less 23I.LT.RP.20.PA1_.EP.MM.PP-D3 29 (7359).xlsb","xlsb","Chapter 9 data for identified figures and tables"]
["Public Figure 9.5 - 23I.LT.RP.20.PA1_.EP.MM.PP-V3 Hunter 3 SCR (8385) less 23I.LT.RP.20.PA1_.EP.MM.PP-D3 29 (7359).xlsb","xlsb","Chapter 9 data for identified figures and tables"]
["Public Figure 9.60 - 23I.LT.RP.20.PS1_.EP.SC.CETA (10305) less 23I.LT.RP.20.PA1_.EP.MM.PP-D3 29 (7359).xlsb","xlsb","Chapter 9 data for identified figures and tables"]
["Public Figure 9.61 - 23I.LT.RP.20.PS1_.EP.SC.CETA (10305) less 23I.LT.RP.20.PS0_.EP.SC.Base (9558).xlsb","xlsb","Chapter 9 data for identified figures and tables"]
["Public Figure 9.62 - 23I.LT.RP.20.PS1_.EP.SC.CETA No Climate (11997) less 23I.LT.RP.20.PS1_.EP.SC.CETA (10305).xlsb","xlsb","Chapter 9 data for identified figures and tables"]
["Public Figure 9.63 - 23I.LT.RP.20.PS1_.EP.SC.CETA Max Benefit (11190) less 23I.LT.RP.20.PS1_.EP.SC.CETA (10305).xlsb","xlsb","Chapter 9 data for identified figures and tables"]
["Public Figure 9.64 - 23I.LT.RP.20.PA1_.EP.MM.PP New Load (10348) less 23I.LT.RP.20.PA1_.EP.MM.PP-D3 29 (7359) chart.xlsb","xlsb","Chapter 9 data for identified figures and tables"]
["Public Figure 9.9 - 23I.LT.RP.20.PA1_.EP.MM.PP-V5 No Nuc-NonE (7370) less 23I.LT.RP.20.PA1_.EP.MM.PP-D3 29 (7359).xlsb","xlsb","Chapter 9 data for identified figures and tables"]
["PublicFigure 9.7 - 23I.LT.RP.20.PA1_.EP.MM.PP-V4 Huntington 28 (7369) less 23I.LT.RP.20.PA1_.EP.MM.PP-D3 29 (7359).xlsb","xlsb","Chapter 9 data for identified figures and tables"]
["Public_LT_16853_23I.LT.RP.20.PA1_.EP.MM.PP-D3 29 BP S06  v118.0.xlsb","xlsb","Report - Plexos Long Term Model, reliable business plan portfolio"]
["Public_LT_16858_23I.LT.RP.20.S01_.EP.MM.High Load  v118.1.xlsb","xlsb","Report - Plexos Long Term Model, reliable high load portfolio"]
["Public_LT_16859_23I.LT.RP.20.S02_.EP.MM.Low Load  v118.1.xlsb","xlsb","Report - Plexos Long Term Model, reliable low load portfolio"]
["Public_LT_16860_23I.LT.RP.20.S03_.EP.MM.1-20 Load  v118.1.xlsb","xlsb","Report - Plexos Long Term Model, reliable 1 in 20  load portfolio"]
["Public_LT_17097_23I.LT.RP.20.PA1_.EP.MM.PP New Load  v118.7.xlsb","xlsb","Report - Plexos Long Term Model, reliable new load portfolio"]
["Public_LT_17098_23I.LT.RP.20.S05_.EP.MM.Low PG Load  v118.7.xlsb","xlsb","Report - Plexos Long Term Model, reliable low PG portfolio"]
["Public_MT Cost Summary -23I.MT.RP.20.PA1_.EP.MM.PP 1in20LD S03.16860 (LT. 16860 - 17032) v118.4.xlsb",{"$f":"RIGHT(A34,4)","v":"xlsb"},"Report - Plexos MT Stochastic Model, reliable 1 in 20  load portfolio"]
["Public_MT Cost Summary -23I.MT.RP.20.PA1_.EP.MM.PP HighLD S01.16858 (LT. 16858 - 16925) v118.4.xlsb","xlsb","Report - Plexos MT Stochastic Model, reliable high load portfolio"]
["Public_MT Cost Summary -23I.MT.RP.20.PA1_.EP.MM.PP LowLD S02.16859 (LT. 16859 - 16967) v118.4.xlsb","xlsb","Report - Plexos MT Stochastic Model, reliable low load portfolio"]
["Public_MT Cost Summary -23I.MT.RP.20.PA1_.EP.MM.PP LowPGLD S05.17098 (LT. 17098 - 17120) v118.8.xlsb","xlsb","Report - Plexos MT Stochastic Model, reliable low PG portfolio"]
["Public_MT Cost Summary -23I.MT.RP.20.PA1_.EP.MM.PP-D3 29 BP S06.16853 (LT. 16853 - 16883) v118.2.xlsb","xlsb","Report - Plexos MT Stochastic Model, reliable business plan portfolio"]
["Public_ST Cost Summary -23I.ST.RP.20.PA1_.EP.MM.PP 1in20LD S03.16860 (LT. 16860 - 16989) v118.4.xlsb","xlsb","Report - Plexos ST Deterministic Model, reliable 1 in 20  load portfolio"]
["Public_ST Cost Summary -23I.ST.RP.20.PA1_.EP.MM.PP HighLD S01.16858 (LT. 16858 - 16904) v118.4.xlsb","xlsb","Report - Plexos ST Deterministic Model, reliable high load portfolio"]
["Public_ST Cost Summary -23I.ST.RP.20.PA1_.EP.MM.PP HighPGLD S04.15447 (LT. 15447 - 17053) v118.4.xlsb","xlsb","Report - Plexos ST Deterministic Model, reliable High PG portfolio"]
["Public_ST Cost Summary -23I.ST.RP.20.PA1_.EP.MM.PP LowLD S02.16859 (LT. 16859 - 16946) v118.4.xlsb","xlsb","Report - Plexos ST Deterministic Model, reliable low load portfolio"]
["Public_ST Cost Summary -23I.ST.RP.20.PA1_.EP.MM.PP LowPGLD S05.17098 (LT. 17098 - 17099) v118.8.xlsb","xlsb","Report - Plexos ST Deterministic Model, reliable low PG portfolio"]
["Public_ST Cost Summary -23I.ST.RP.20.PA1_.EP.MM.PP-D3 29 BP S06.16853 (LT. 16853 - 16862) v118.2.xlsb","xlsb","Report - Plexos ST Deterministic Model, reliable business plan portfolio"]